fUST/lending_fUST_20250702
["ID","MTS","AMOUNT","RATE_DAILY","PERIOD"]
[369000116,1751430640391,-460.0,0.0001697,2]
[369000117,1751430640401,-1364.29,0.0001697,2]
[369000118,1751430640411,-542.31,0.00017069,2]
[369000119,1751430640421,-545.36,0.00017069,2]
[369000120,1751430640430,-460.0,0.00017069,2]
[369000121,1751430640440,-460.0,0.00017069,2]
[369000122,1751430640449,-460.0,0.00017069,2]
[369000123,1751430640458,-460.0,0.00017069,2]
[369000124,1751430640468,-563.0,0.00017069,2]
[369000125,1751430640477,-165.0,0.00017069,2]
[369000126,1751430640486,-460.0,0.0001707,2]
[369000127,1751430640496,-3573.90021531,0.00017123,2]
[369000128,1751430640506,-497.34332031,0.00017242,2]
[369000129,1751430640516,-460.0,0.00017242,2]
[369000130,1751430640525,-463.96,0.00017242,2]
[369000131,1751430640535,-460.0,0.00017242,2]
[369000132,1751430640545,-1369.44,0.00017242,2]
[369000133,1751430640555,-460.0,0.00017242,2]
[369000134,1751430640565,-460.0,0.00017243,2]
[369000135,1751430640574,-460.0,0.00017243,2]
[369000136,1751430640584,-569.35590276,0.00017243,2]
[369000137,1751430640593,-460.0,0.00017243,2]
[369000138,1751430640603,-460.0,0.00017243,2]
[369000139,1751430640614,-460.0,0.00017243,2]
[369000141,1751430640624,-460.0,0.00017243,2]
[369000143,1751430640633,-460.0,0.00017243,2]
[369000145,1751430640642,-460.0,0.00017243,2]
[369000147,1751430640651,-460.0,0.00017243,2]
[369000149,1751430640661,-198.88409279,0.00017243,2]
[369000151,1751430640671,-460.0,0.00017243,2]
[369000153,1751430640680,-460.0,0.00017243,2]
[369000155,1751430640690,-460.0,0.00017243,2]
[369000157,1751430640700,-460.0,0.00017243,2]
[369000159,1751430640709,-460.0,0.00017243,2]
[369000161,1751430640718,-460.0,0.00017243,2]
[369000163,1751430640727,-460.0,0.00017243,2]
[369000165,1751430640737,-460.0,0.00017243,2]
[369000167,1751430640747,-634.83,0.00017243,2]
[369000169,1751430640756,-556.91,0.00017243,2]
[369000171,1751430640765,-802.51,0.00017244,2]
[369000173,1751430640775,-460.0,0.00017244,2]
[369000175,1751430640784,-460.0,0.00017244,2]
[369000177,1751430640794,-460.0,0.00017244,2]
[369000179,1751430640803,-460.0,0.00017244,2]
[369000180,1751430640812,-460.0,0.00017244,2]
[369000181,1751430640821,-460.0,0.00017244,2]
[369000182,1751430640831,-460.0,0.00017244,2]
[369000183,1751430640841,-460.0,0.00017244,2]
[369000185,1751430640851,-460.0,0.00017244,2]
[369000188,1751430640860,-1364.29,0.00017244,2]
[369000190,1751430640869,-460.0,0.00017343,2]
[369000192,1751430640878,-460.0,0.00017344,2]
[369000194,1751430640889,-460.0,0.00017516,2]
[369000196,1751430640898,-463.96,0.00017516,2]
[369000198,1751430640908,-460.0,0.00017516,2]
[369000200,1751430640917,-1369.44,0.00017516,2]
[369000202,1751430640927,-460.0,0.00017516,2]
[369000204,1751430640936,-460.0,0.00017517,2]
[369000206,1751430640945,-460.0,0.00017517,2]
[369000208,1751430640954,-460.0,0.00017517,2]
[369000210,1751430640964,-460.0,0.00017517,2]
[369000212,1751430640973,-460.0,0.00017517,2]
[369000214,1751430640982,-460.0,0.00017517,2]
[369000216,1751430640992,-460.0,0.00017517,2]
[369000218,1751430641001,-606.16,0.00017517,2]
[369000220,1751430641011,-460.0,0.00017517,2]
[369000222,1751430641020,-460.0,0.00017517,2]
[369000224,1751430641029,-460.0,0.00017517,2]
[369000226,1751430641039,-460.0,0.00017517,2]
[369000227,1751430641048,-460.0,0.00017517,2]
[369000229,1751430641057,-460.0,0.00017517,2]
[369000232,1751430641067,-460.0,0.00017517,2]
[369000233,1751430641076,-460.0,0.00017517,2]
[369000236,1751430641086,-634.83,0.00017517,2]
[369000238,1751430641095,-556.91,0.00017517,2]
[369000239,1751430641104,-802.51,0.00017518,2]
[369000242,1751430641115,-460.0,0.00017518,2]
[369000244,1751430641124,-460.0,0.00017518,2]
[369000246,1751430641133,-460.0,0.00017518,2]
[369000248,1751430641142,-460.0,0.00017518,2]
[369000250,1751430641152,-608.79,0.00017518,2]
[369000252,1751430641161,-460.0,0.00017518,2]
[369000254,1751430641171,-460.0,0.00017518,2]
[369000256,1751430641180,-460.0,0.00017518,2]
[369000258,1751430641190,-460.0,0.00017518,2]
[369000260,1751430641200,-1364.29,0.00017518,2]
[369000262,1751430641211,-152.97776085,0.00017617,2]
[369000264,1751430641220,-460.0,0.00017618,2]
[369000266,1751430641230,-460.0,0.0001779,2]
[369000268,1751430641242,-463.96,0.0001779,2]
[369000270,1751430641251,-460.0,0.0001779,2]
[369000272,1751430641261,-1369.44,0.0001779,2]
[369000274,1751430641270,-460.0,0.0001779,2]
[369000276,1751430641280,-460.0,0.00017791,2]
[369000278,1751430641290,-460.0,0.00017791,2]
[369000280,1751430641299,-460.0,0.00017791,2]
[369000282,1751430641309,-460.0,0.00017791,2]
[369000284,1751430641318,-460.0,0.00017791,2]
[369000286,1751430641327,-460.0,0.00017791,2]
[369000288,1751430641337,-460.0,0.00017791,2]
[369000290,1751430641346,-460.0,0.00017791,2]
[369000292,1751430641356,-460.0,0.00017791,2]
[369000294,1751430641364,-460.0,0.00017791,2]
[369000296,1751430641374,-557.41,0.00017791,2]
[369000298,1751430641383,-460.0,0.00017791,2]
[369000300,1751430641392,-460.0,0.00017791,2]
[369000303,1751430641404,-460.0,0.00017791,2]
[369000305,1751430641413,-634.83,0.00017791,2]
[369000307,1751430641422,-556.91,0.00017791,2]
[369000309,1751430641432,-802.51,0.00017792,2]
[369000311,1751430641442,-460.0,0.00017792,2]
[369000313,1751430641451,-460.0,0.00017792,2]
[369000315,1751430641460,-460.0,0.00017792,2]
[369000317,1751430641470,-460.0,0.00017792,2]
[369000319,1751430641479,-460.0,0.00017792,2]
[369000321,1751430641489,-460.0,0.00017792,2]
[369000323,1751430641499,-460.0,0.00017792,2]
[369000325,1751430641508,-460.0,0.00017792,2]
[369000327,1751430641518,-1364.29,0.00017792,2]
[369000329,1751430641528,-460.0,0.00017892,2]
[369000331,1751430641537,-731.0673279,0.00018,2]
[369000333,1751430641547,-1359.47564861,0.00018,2]
[369000335,1751430641557,-1359.47564834,0.00018,2]
[369000337,1751430641566,-1359.47564834,0.00018,2]
[369000339,1751430641576,-1359.47564834,0.00018,2]
[369000341,1751430641586,-1609.44,0.00018057,3]
[369000343,1751430641595,-804.72,0.00018057,3]
[369000345,1751430641605,-402.36,0.00018057,3]
[369000347,1751430641617,-460.0,0.00018064,2]
[369000349,1751430641631,-463.96,0.00018064,2]
[369000351,1751430641640,-460.0,0.00018064,2]
[369000353,1751430641650,-1369.44,0.00018064,2]
[369000355,1751430641659,-460.0,0.00018064,2]
[369000357,1751430641669,-460.0,0.00018065,2]
[369000370,1751430641782,-460.0,0.00018065,2]
[369000372,1751430641792,-460.0,0.00018065,2]
[369000374,1751430641802,-460.0,0.00018065,2]
[369000376,1751430641811,-460.0,0.00018065,2]
[369000378,1751430641821,-460.0,0.00018065,2]
[369000380,1751430641830,-460.0,0.00018065,2]
[369000382,1751430641841,-460.0,0.00018065,2]
[369000384,1751430641850,-460.0,0.00018065,2]
[369000386,1751430641860,-537.82458879,0.00018065,2]
[369000388,1751430641869,-460.0,0.00018065,2]
[369000390,1751430641879,-571.85599478,0.00018065,2]
[369000392,1751430641888,-460.0,0.00018065,2]
[369000394,1751430641897,-634.83,0.00018065,2]
[369000396,1751430641907,-556.91,0.00018065,2]
[369000398,1751430641916,-802.51,0.00018066,2]
[369000400,1751430641926,-460.0,0.00018066,2]
[369000402,1751430641936,-460.0,0.00018066,2]
[369000404,1751430641945,-460.0,0.00018066,2]
[369000406,1751430641955,-460.0,0.00018066,2]
[369000408,1751430641965,-460.0,0.00018066,2]
[369000410,1751430641975,-460.0,0.00018066,2]
[369000412,1751430641985,-460.0,0.00018066,2]
[369000414,1751430641994,-1364.29,0.00018066,2]
[369000416,1751430642003,-1359.47564834,0.00018141,2]
[369000418,1751430642013,-460.0,0.00018166,2]
[369000420,1751430642024,-300.0,0.00018239,2]
[369000422,1751430642033,-460.0,0.00018338,2]
[369000424,1751430642043,-463.96,0.00018338,2]
[369000426,1751430642052,-460.0,0.00018338,2]
[369000429,1751430642062,-1369.44,0.00018338,2]
[369000430,1751430642071,-460.0,0.00018338,2]
[369000433,1751430642081,-460.0,0.00018339,2]
[369000434,1751430642090,-460.0,0.00018339,2]
[369000436,1751430642100,-460.0,0.00018339,2]
[369000439,1751430642109,-460.0,0.00018339,2]
[369000441,1751430642119,-477.89,0.00018339,2]
[369000443,1751430642128,-460.0,0.00018339,2]
[369000445,1751430642137,-460.0,0.00018339,2]
[369000447,1751430642147,-241.96733854,0.00018339,2]
[369000448,1751430642156,-460.0,0.00018339,2]
[369000451,1751430642165,-460.0,0.00018339,2]
[369000453,1751430642175,-634.83,0.00018339,2]
[369000454,1751430642184,-556.91,0.00018339,2]
[369000456,1751430642194,-802.51,0.0001834,2]
[369000458,1751430642203,-460.0,0.0001834,2]
[369000460,1751430642212,-460.0,0.0001834,2]
[369000463,1751430642222,-460.0,0.0001834,2]
[369000464,1751430642231,-460.0,0.0001834,2]
[369000466,1751430642241,-460.0,0.0001834,2]
[369000469,1751430642250,-460.0,0.0001834,2]
[369000470,1751430642260,-460.0,0.0001834,2]
[369000472,1751430642270,-1364.29,0.0001834,2]
[369000474,1751430642279,-460.0,0.0001844,2]
[369000477,1751430642291,-1359.47564834,0.00018452,2]
[369000479,1751430642300,-460.0,0.00018612,2]
[369000481,1751430642309,-463.96,0.00018612,2]
[369000483,1751430642319,-460.0,0.00018612,2]
[369000485,1751430642328,-1369.44,0.00018612,2]
[369000487,1751430642337,-460.0,0.00018612,2]
[369000489,1751430642347,-460.0,0.00018613,2]
[369000490,1751430642355,-460.0,0.00018613,2]
[369000494,1751430642377,-460.0,0.00018613,2]
[369000496,1751430642386,-460.0,0.00018613,2]
[369000498,1751430642396,-460.0,0.00018613,2]
[369000500,1751430642405,-460.0,0.00018613,2]
[369000502,1751430642414,-460.0,0.00018613,2]
[369000504,1751430642423,-634.83,0.00018613,2]
[369000506,1751430642433,-556.91,0.00018613,2]
[369000508,1751430642442,-802.51,0.00018614,2]
[369000510,1751430642451,-417.65859064,0.00018614,2]
[369000512,1751430642461,-460.0,0.00018614,2]
[369000514,1751430642470,-460.0,0.00018614,2]
[369000516,1751430642479,-460.0,0.00018614,2]
[369000518,1751430642488,-460.0,0.00018614,2]
[369000520,1751430642497,-460.0,0.00018614,2]
[369000522,1751430642507,-460.0,0.00018614,2]
[369000524,1751430642518,-1364.29,0.00018614,2]
[369000526,1751430642528,-1250.7879992,0.0001868,2]
[369000528,1751430642538,-460.0,0.00018714,2]
[369000530,1751430642548,-1359.47564834,0.00018762,2]
[369000532,1751430642558,-837.27862799,0.0001878,2]
[369000534,1751430642567,-160.0,0.0001878,2]
[369000536,1751430642577,-160.0,0.0001878,2]
[369000538,1751430642587,-160.0,0.0001878,2]
[369000540,1751430642596,-160.0,0.0001878,2]
[369000542,1751430642606,-160.0,0.0001878,2]
[369000544,1751430642618,-12573.65100011,0.0001878,2]
[369000546,1751430642629,-160.0,0.0001878,2]
[369000548,1751430642638,-215.04179405,0.0001878,2]
[369000550,1751430642648,-230.34465076,0.0001878,2]
[369000552,1751430642658,-160.0,0.0001878,2]
[369000554,1751430642667,-213.90888375,0.0001878,2]
[369000556,1751430642677,-847.65867985,0.00018791,2]
[369000558,1751430642686,-460.0,0.00018886,2]
[369000560,1751430642695,-463.96,0.00018886,2]
[369000562,1751430642706,-460.0,0.00018886,2]
[369000564,1751430642715,-1369.44,0.00018886,2]
[369000566,1751430642725,-460.0,0.00018886,2]
[369000568,1751430642735,-460.0,0.00018887,2]
[369000570,1751430642744,-460.0,0.00018887,2]
[369000572,1751430642754,-460.0,0.00018887,2]
[369000574,1751430642764,-460.0,0.00018887,2]
[369000576,1751430642774,-515.56961407,0.00018887,2]
[369000578,1751430642784,-514.13041278,0.00018887,2]
[369000579,1751430642793,-634.83,0.00018887,2]
[369000581,1751430642803,-556.91,0.00018887,2]
[369000583,1751430642812,-802.51,0.00018888,2]
[369000585,1751430642821,-460.0,0.00018888,2]
[369000587,1751430642830,-460.0,0.00018888,2]
[369000589,1751430642839,-460.0,0.00018888,2]
[369000591,1751430642849,-460.0,0.00018888,2]
[369000593,1751430642858,-460.0,0.00018888,2]
[369000595,1751430642868,-460.0,0.00018888,2]
[369000597,1751430642877,-1364.29,0.00018888,2]
[369000599,1751430642887,-3197.90797372,0.000189,2]
[369000601,1751430642896,-460.0,0.00018988,2]
[369000603,1751430642906,-1359.47564834,0.00019072,2]
[369000605,1751430642916,-460.0,0.0001916,2]
[369000607,1751430642925,-463.96,0.0001916,2]
[369000610,1751430642934,-460.0,0.0001916,2]
[369000612,1751430642944,-460.0,0.0001916,2]
[369000614,1751430642953,-1369.44,0.0001916,2]
[369000616,1751430642962,-460.0,0.00019161,2]
[369000618,1751430642971,-460.0,0.00019161,2]
[369000620,1751430642981,-460.0,0.00019161,2]
[369000623,1751430642990,-460.0,0.00019161,2]
[369000625,1751430643003,-634.83,0.00019161,2]
[369000628,1751430643012,-556.91,0.00019161,2]
[369000632,1751430643022,-802.51,0.00019162,2]
[369000636,1751430643032,-460.0,0.00019162,2]
[369000640,1751430643041,-460.0,0.00019162,2]
[369000643,1751430643051,-460.0,0.00019162,2]
[369000646,1751430643060,-460.0,0.00019162,2]
[369000649,1751430643069,-460.0,0.00019162,2]
[369000652,1751430643078,-539.34,0.00019162,2]
[369000655,1751430643088,-1364.29,0.00019162,2]
[369000658,1751430643097,-186.961561,0.00019178,2]
[369000661,1751430643107,-460.0,0.00019262,2]
[369000664,1751430643116,-151.0,0.00019329,2]
[369000667,1751430643126,-151.0,0.00019329,2]
[369000670,1751430643135,-151.0,0.00019329,2]
[369000673,1751430643144,-151.0,0.00019329,2]
[369000676,1751430643154,-151.0,0.00019329,2]
[369000679,1751430643163,-152.946531,0.00019329,2]
[369000682,1751430643172,-152.946531,0.00019329,2]
[369000685,1751430643182,-151.0,0.00019329,2]
[369000688,1751430643191,-151.0,0.00019329,2]
[369000691,1751430643200,-500.0,0.00019342,2]
[369000694,1751430643210,-151.0,0.00019342,2]
[369000697,1751430643220,-154.25677098,0.00019342,2]
[369000700,1751430643230,-151.0,0.00019342,2]
[369000703,1751430643239,-154.5342084,0.00019342,2]
[369000706,1751430643248,-259.65232444,0.00019342,2]
[369000709,1751430643258,-153.48649332,0.00019342,2]
[369000712,1751430643267,-500.0,0.00019342,2]
[369000715,1751430643277,-151.0,0.00019342,2]
[369000718,1751430643286,-151.0,0.00019342,2]
[369000721,1751430643295,-151.0,0.00019342,2]
[369000724,1751430643305,-500.0,0.00019369,2]
[369000727,1751430643314,-151.0,0.00019369,2]
[369000730,1751430643323,-151.0,0.00019369,2]
[369000733,1751430643333,-500.0,0.00019369,2]
[369000736,1751430643342,-159.83810181,0.00019369,2]
[369000739,1751430643352,-151.0,0.00019369,2]
[369000742,1751430643361,-1359.47564834,0.00019383,2]
[369000745,1751430643371,-500.0,0.00019397,2]
[369000747,1751430643380,-202.65901361,0.00019397,2]
[369000749,1751430643390,-294.10141575,0.00019397,2]
[369000751,1751430643400,-168.84122403,0.00019397,2]
[369000753,1751430643409,-151.0,0.00019397,2]
[369000755,1751430643419,-207.93081835,0.00019413,2]
[369000757,1751430643428,-500.0,0.00019424,2]
[369000759,1751430643437,-460.0,0.00019434,2]
[369000761,1751430643447,-463.96,0.00019434,2]
[369000763,1751430643456,-460.0,0.00019434,2]
[369000765,1751430643465,-460.0,0.00019434,2]
[369000767,1751430643474,-1369.44,0.00019434,2]
[369000769,1751430643483,-460.0,0.00019435,2]
[369000771,1751430643492,-460.0,0.00019435,2]
[369000773,1751430643501,-460.0,0.00019435,2]
[369000775,1751430643511,-460.0,0.00019435,2]
[369000777,1751430643520,-634.83,0.00019435,2]
[369000779,1751430643530,-556.91,0.00019435,2]
[369000781,1751430643539,-802.51,0.00019436,2]
[369000783,1751430643549,-460.0,0.00019436,2]
[369000785,1751430643558,-460.0,0.00019436,2]
[369000787,1751430643568,-231.81357178,0.00019436,2]
[369000789,1751430643577,-460.0,0.00019436,2]
[369000791,1751430643588,-460.0,0.00019436,2]
[369000793,1751430643597,-1364.29,0.00019436,2]
[369000795,1751430643606,-489.0,0.00019452,2]
[369000797,1751430643618,-206.19884,0.00019535,2]
[369000799,1751430643627,-206.19884,0.00019535,2]
[369000801,1751430643637,-411.23913339,0.00019536,2]
[369000803,1751430643646,-500.0,0.00019667,2]
[369000805,1751430643655,-500.0,0.00019667,2]
[369000807,1751430643665,-1359.47564834,0.00019693,2]
[369000809,1751430643674,-460.0,0.00019708,2]
[369000811,1751430643685,-463.96,0.00019708,2]
[369000813,1751430643695,-460.0,0.00019708,2]
[369000815,1751430643705,-460.0,0.00019708,2]
[369000817,1751430643715,-1369.44,0.00019708,2]
[369000820,1751430643725,-460.0,0.00019709,2]
[369000821,1751430643734,-460.0,0.00019709,2]
[369000823,1751430643744,-460.0,0.00019709,2]
[369000825,1751430643753,-460.0,0.00019709,2]
[369000828,1751430643761,-634.83,0.00019709,2]
[369000830,1751430643771,-556.91,0.00019709,2]
[369000832,1751430643781,-802.51,0.0001971,2]
[369000834,1751430643790,-561.13760026,0.0001971,2]
[369000837,1751430643800,-460.0,0.0001971,2]
[369000839,1751430643809,-460.0,0.0001971,2]
[369000842,1751430643823,-460.0,0.0001971,2]
[369000843,1751430643832,-1364.29,0.0001971,2]
[369000845,1751430643841,-195.66481742,0.00019834,2]
[369000847,1751430643851,-460.0,0.00019982,2]
[369000849,1751430643860,-463.96,0.00019982,2]
[369000851,1751430643870,-460.0,0.00019982,2]
[369000853,1751430643880,-460.0,0.00019982,2]
[369000856,1751430643889,-1369.44,0.00019982,2]
[369000858,1751430643899,-460.0,0.00019983,2]
[369000861,1751430643923,-460.0,0.00019983,2]
[369000863,1751430643933,-460.0,0.00019983,2]
[369000865,1751430643942,-192.85472163,0.00019983,2]
[369000867,1751430643953,-634.83,0.00019983,2]
[369000869,1751430643963,-556.91,0.00019983,2]
[369000871,1751430643973,-802.51,0.00019984,2]
[369000873,1751430643983,-440.09464604,0.00019984,2]
[369000875,1751430643993,-460.0,0.00019984,2]
[369000877,1751430644003,-460.0,0.00019984,2]
[369000879,1751430644013,-1364.29,0.00019984,2]
[369000881,1751430644023,-48224.83153581,0.0001999,2]
[369000883,1751430644032,-1359.47564834,0.00020003,2]
[369000885,1751430644042,-303.306928,0.00020187,2]
[369000887,1751430644052,-1000.0,0.00020215,2]
[369000889,1751430644062,-460.0,0.00020256,2]
[369000892,1751430644072,-463.96,0.00020256,2]
[369000894,1751430644082,-460.0,0.00020256,2]
[369000895,1751430644092,-460.0,0.00020256,2]
[369000897,1751430644101,-1369.44,0.00020256,2]
[369000900,1751430644111,-460.0,0.00020257,2]
[369000902,1751430644120,-460.0,0.00020257,2]
[369000904,1751430644130,-460.0,0.00020257,2]
[369000906,1751430644140,-634.83,0.00020257,2]
[369000908,1751430644150,-556.91,0.00020257,2]
[369000910,1751430644160,-802.51,0.00020258,2]
[369000912,1751430644169,-460.0,0.00020258,2]
[369000914,1751430644179,-460.0,0.00020258,2]
[369000916,1751430644189,-1364.29,0.00020258,2]
[369000918,1751430644206,-1359.47564834,0.00020314,3]
[369000920,1751430644216,-151.0,0.00020341,2]
[369000922,1751430644226,-500.0,0.00020341,2]
[369000924,1751430644236,-151.0,0.00020341,2]
[369000926,1751430644245,-151.0,0.00020341,2]
[369000928,1751430644254,-500.0,0.00020341,2]
[369000930,1751430644264,-151.0,0.00020341,2]
[369000932,1751430644274,-151.0,0.00020341,2]
[369000934,1751430644284,-151.0,0.00020368,2]
[369000936,1751430644293,-500.0,0.00020368,2]
[369000939,1751430644303,-151.0,0.00020368,2]
[369000941,1751430644313,-151.0,0.00020368,2]
[369000957,1751430644458,-533.37485351,0.00020368,2]
[369000959,1751430644469,-151.0,0.00020368,2]
[369000961,1751430644479,-151.0,0.00020368,2]
[369000963,1751430644488,-184.73226882,0.00020396,2]
[369000966,1751430644498,-446.83593212,0.00020396,2]
[369000968,1751430644512,-151.0,0.00020396,2]
[369000970,1751430644522,-151.0,0.00020396,2]
[369000972,1751430644532,-151.0,0.00020396,2]
[369000974,1751430644542,-199.39485306,0.00020396,2]
[369000976,1751430644551,-191.7,0.00020421,4]
[369000978,1751430644561,-199.55552718,0.00020423,2]
[369000980,1751430644571,-199.03225249,0.00020423,2]
[369000982,1751430644580,-151.0,0.00020423,2]
[369000984,1751430644590,-280.16192705,0.00020451,2]
[369000986,1751430644600,-460.0,0.0002053,2]
[369000988,1751430644609,-463.96,0.0002053,2]
[369000990,1751430644622,-460.0,0.0002053,2]
[369000991,1751430644632,-1369.44,0.0002053,2]
[369000992,1751430644642,-292.75265808,0.0002053,2]
[369000993,1751430644652,-460.0,0.00020531,2]
[369000994,1751430644662,-460.0,0.00020531,2]
[369000995,1751430644671,-460.0,0.00020531,2]
[369000996,1751430644681,-634.83,0.00020531,2]
[369000997,1751430644691,-556.91,0.00020531,2]
[369000998,1751430644700,-802.51,0.00020532,2]
[369000999,1751430644710,-460.0,0.00020532,2]
[369001000,1751430644720,-460.0,0.00020532,2]
[369001001,1751430644729,-1364.29,0.00020532,2]
[369001002,1751430644739,-594.745,0.00020594,2]
[369001003,1751430644749,-178.16484544,0.00020594,2]
[369001004,1751430644758,-1359.47564834,0.00020624,3]
[369001005,1751430644767,-2281.20882434,0.00020656,2]
[369001006,1751430644777,-1250.7879992,0.00020687,2]
[369001007,1751430644787,-527.22,0.000207,2]
[369001008,1751430644796,-1500.0,0.00020763,2]
[369001009,1751430644806,-460.0,0.00020804,2]
[369001010,1751430644815,-463.96,0.00020804,2]
[369001011,1751430644825,-460.0,0.00020804,2]
[369001012,1751430644835,-1369.44,0.00020804,2]
[369001014,1751430644845,-460.0,0.00020805,2]
[369001016,1751430644854,-460.0,0.00020805,2]
[369001018,1751430644864,-460.0,0.00020805,2]
[369001020,1751430644874,-634.83,0.00020805,2]
[369001023,1751430644883,-556.91,0.00020805,2]
[369001025,1751430644892,-802.51,0.00020806,2]
[369001026,1751430644902,-460.0,0.00020806,2]
[369001029,1751430644911,-460.0,0.00020806,2]
[369001031,1751430644921,-1364.29,0.00020806,2]
[369001033,1751430644930,-5888.0,0.00020809,2]
[369001035,1751430644939,-566.0,0.00020828,2]
[369001037,1751430644949,-191.7,0.00020857,4]
[369001039,1751430644959,-1359.47564834,0.00020934,4]
[369001040,1751430644968,-460.0,0.00021078,2]
[369001042,1751430644978,-463.96,0.00021078,2]
[369001044,1751430644987,-460.0,0.00021078,2]
[369001046,1751430644996,-1369.44,0.00021078,2]
[369001049,1751430645006,-460.0,0.00021079,2]
[369001051,1751430645015,-460.0,0.00021079,2]
[369001052,1751430645024,-460.0,0.00021079,2]
[369001054,1751430645034,-634.83,0.00021079,2]
[369001056,1751430645043,-556.91,0.00021079,2]
[369001058,1751430645053,-802.51,0.0002108,2]
[369001060,1751430645062,-460.0,0.0002108,2]
[369001063,1751430645072,-460.0,0.0002108,2]
[369001065,1751430645081,-1364.29,0.0002108,2]
[369001067,1751430645091,-5000.0,0.00021084,2]
[369001069,1751430645100,-1500.0,0.00021084,2]
[369001071,1751430645110,-1500.0,0.00021084,2]
[369001073,1751430645120,-1500.0,0.00021084,2]
[369001075,1751430645132,-1500.0,0.00021084,2]
[369001077,1751430645142,-1500.0,0.00021084,2]
[369001079,1751430645153,-1500.0,0.00021084,2]
[369001081,1751430645163,-207.4,0.00021084,2]
[369001083,1751430645173,-1500.0,0.00021084,2]
[369001085,1751430645182,-1500.0,0.00021084,2]
[369001088,1751430645192,-1500.0,0.00021084,2]
[369001090,1751430645202,-1500.0,0.00021084,2]
[369001092,1751430645212,-1406.24796827,0.00021084,2]
[369001094,1751430645221,-1359.47564834,0.00021245,4]
[369001096,1751430645231,-3025.26,0.00021282,2]
[369001098,1751430645241,-191.7,0.00021294,4]
[369001100,1751430645250,-2000.0,0.00021311,2]
[369001102,1751430645260,-170.0,0.0002134,2]
[369001104,1751430645270,-460.0,0.00021352,2]
[369001106,1751430645280,-463.96,0.00021352,2]
[369001108,1751430645290,-460.0,0.00021352,2]
[369001110,1751430645300,-1369.44,0.00021352,2]
[369001112,1751430645310,-460.0,0.00021353,2]
[369001114,1751430645319,-460.0,0.00021353,2]
[369001116,1751430645329,-460.0,0.00021353,2]
[369001118,1751430645338,-634.83,0.00021353,2]
[369001120,1751430645348,-556.91,0.00021353,2]
[369001122,1751430645358,-802.51,0.00021354,2]
[369001124,1751430645367,-453.69921808,0.00021354,2]
[369001126,1751430645377,-460.0,0.00021354,2]
[369001128,1751430645386,-1364.29,0.00021354,2]
[369001130,1751430645396,-505.69477543,0.00021388,2]
[369001132,1751430645405,-8000.0,0.00021388,2]
[369001134,1751430645415,-170.0,0.0002141,2]
[369001136,1751430645424,-170.0,0.00021415,2]
[369001138,1751430645434,-151.0,0.00021456,2]
[369001140,1751430645443,-151.0,0.00021456,2]
[369001142,1751430645453,-151.0,0.00021456,2]
[369001145,1751430645463,-151.0,0.00021456,2]
[369001147,1751430645472,-267.562191,0.00021456,2]